[Event "*** Titled Tuesday 3|2 Blitz"]
[Site "Chess.com"]
[Date "2015.11.03"]
[Round "2"]
[White "Fh2411"]
[Black "bugsbunny444"]
[Result "1-0"]
[WhiteElo "2320"]
[BlackElo "2326"]
[TimeControl "180+2"]
[EndTime "17:20:15 PST"]
[Termination "Fh2411 won by resignation"]

1. d4 {[%clk 0:03:01.9]} 1... e6 {[%clk 0:03:00.6]} 2. Nf3 {[%clk 0:03:02.7]}
2... d5 {[%clk 0:03:01]} 3. g3 {[%clk 0:03:02.2]} 3... Nf6 {[%clk 0:02:59.2]} 4.
Bg2 {[%clk 0:03:04.1]} 4... b5 {[%clk 0:02:59.5]} 5. O-O {[%clk 0:03:04.4]} 5...
Bb7 {[%clk 0:03:01]} 6. a4 {[%clk 0:03:05.5]} 6... a6 {[%clk 0:02:55.9]} 7. Ne5
{[%clk 0:02:56.1]} 7... Nbd7 {[%clk 0:02:53.2]} 8. Bf4 {[%clk 0:02:55.5]} 8...
Bd6 {[%clk 0:02:44.4]} 9. Nd3 {[%clk 0:02:34.6]} 9... O-O {[%clk 0:02:37.9]} 10.
Nd2 {[%clk 0:02:34.7]} 10... Qe7 {[%clk 0:02:34.4]} 11. Nb3 {[%clk 0:02:32.5]}
11... e5 {[%clk 0:02:22.4]} 12. dxe5 {[%clk 0:02:31.2]} 12... Nxe5 {[%clk
0:02:23.7]} 13. Nxe5 {[%clk 0:02:13.3]} 13... Bxe5 {[%clk 0:02:24.7]} 14. Bxe5
{[%clk 0:02:14]} 14... Qxe5 {[%clk 0:02:26.6]} 15. c3 {[%clk 0:02:15.5]} 15...
Rfe8 {[%clk 0:02:18.5]} 16. e3 {[%clk 0:02:16.2]} 16... Ne4 {[%clk 0:02:18]} 17.
Qd4 {[%clk 0:02:07.8]} 17... Qe7 {[%clk 0:02:08.2]} 18. Na5 {[%clk 0:01:44.1]}
18... c5 {[%clk 0:02:05.1]} 19. Qd1 {[%clk 0:01:44.8]} 19... Rad8 {[%clk
0:01:55.7]} 20. Nxb7 {[%clk 0:01:43.8]} 20... Qxb7 {[%clk 0:01:57.6]} 21. Qc2
{[%clk 0:01:39.7]} 21... f5 {[%clk 0:01:45.5]} 22. Rfd1 {[%clk 0:01:39.3]} 22...
g6 {[%clk 0:01:44.2]} 23. axb5 {[%clk 0:01:23.8]} 23... axb5 {[%clk 0:01:45.1]}
24. Qb3 {[%clk 0:01:24.5]} 24... Kg7 {[%clk 0:01:18.4]} 25. Bf1 {[%clk
0:01:22.7]} 25... c4 {[%clk 0:01:04.5]} 26. Qb4 {[%clk 0:01:22.2]} 26... Ra8
{[%clk 0:01:01.1]} 27. Bg2 {[%clk 0:01:07.6]} 27... Kf7 {[%clk 0:00:53.9]} 28.
h4 {[%clk 0:01:06.8]} 28... Rxa1 {[%clk 0:00:50.3]} 29. Rxa1 {[%clk 0:01:07.1]}
29... Ra8 {[%clk 0:00:49.8]} 30. Rxa8 {[%clk 0:00:51.5]} 30... Qxa8 {[%clk
0:00:51.7]} 31. Bxe4 {[%clk 0:00:34.3]} 31... fxe4 {[%clk 0:00:47.4]} 32. Qxb5
{[%clk 0:00:35.1]} 32... Qa1+ {[%clk 0:00:26.5]} 33. Kh2 {[%clk 0:00:34.1]}
33... Qd1 {[%clk 0:00:28.1]} 34. Qd7+ {[%clk 0:00:33.2]} 34... Kg8 {[%clk
0:00:25.7]} 35. Qe6+ {[%clk 0:00:31.1]} 35... Kg7 {[%clk 0:00:22.9]} 36. Qe7+
{[%clk 0:00:32.1]} 36... Kg8 {[%clk 0:00:23.5]} 37. Qd7 {[%clk 0:00:29.8]} 37...
Qd2 {[%clk 0:00:21.3]} 38. Kg2 {[%clk 0:00:31]} 38... h5 {[%clk 0:00:14.6]} 39.
Qe6+ {[%clk 0:00:28.8]} 39... Kg7 {[%clk 0:00:15.6]} 40. Qe7+ {[%clk 0:00:29.8]}
40... Kg8 {[%clk 0:00:17.1]} 41. Qf6 {[%clk 0:00:29.5]} 41... Kh7 {[%clk
0:00:14.5]} 42. Qf7+ {[%clk 0:00:30.2]} 42... Kh6 {[%clk 0:00:15.3]} 43. Qg8
{[%clk 0:00:31.1]} 1-0

[Event "*** Titled Tuesday 3|2 Blitz"]
[Site "Chess.com"]
[Date "2015.11.03"]
[Round "2"]
[White "Noukii"]
[Black "LePlusMortel"]
[Result "1-0"]
[WhiteElo "2634"]
[BlackElo "2434"]
[TimeControl "180+2"]
[EndTime "17:20:27 PST"]
[Termination "Noukii won by resignation"]

1. d4 {[%clk 0:03:01.9]} 1... Nf6 {[%clk 0:03:01.1]} 2. c4 {[%clk 0:03:03.3]}
2... c5 {[%clk 0:03:02.7]} 3. d5 {[%clk 0:03:03.8]} 3... e6 {[%clk 0:03:04]} 4.
Nc3 {[%clk 0:03:04.3]} 4... exd5 {[%clk 0:03:05.9]} 5. cxd5 {[%clk 0:03:06]}
5... Bd6 {[%clk 0:03:07.5]} 6. Nf3 {[%clk 0:03:06.7]} 6... O-O {[%clk
0:03:09.1]} 7. Bg5 {[%clk 0:03:07.9]} 7... Re8 {[%clk 0:03:10.4]} 8. e3 {[%clk
0:03:08.9]} 8... a6 {[%clk 0:03:12]} 9. a4 {[%clk 0:03:09.6]} 9... Bf8 {[%clk
0:03:13.4]} 10. d6 {[%clk 0:03:07.6]} 10... Re6 {[%clk 0:03:14.5]} 11. Bc4
{[%clk 0:03:08.3]} 11... Rxd6 {[%clk 0:03:15.5]} 12. Qb3 {[%clk 0:03:07.1]}
12... Re6 {[%clk 0:03:17]} 13. O-O {[%clk 0:03:02.1]} 13... Nc6 {[%clk
0:03:14.7]} 14. Bxe6 {[%clk 0:03:02.3]} 14... fxe6 {[%clk 0:03:16.6]} 15. Rad1
{[%clk 0:02:56.8]} 15... d5 {[%clk 0:02:43.9]} 16. e4 {[%clk 0:02:55.2]} 16...
d4 {[%clk 0:02:45.1]} 17. e5 {[%clk 0:02:55.3]} 17... h6 {[%clk 0:02:46.7]} 18.
Bh4 {[%clk 0:02:12.3]} 18... g5 {[%clk 0:02:47.5]} 19. exf6 {[%clk 0:02:09.3]}
19... gxh4 {[%clk 0:02:43.6]} 20. Ne4 {[%clk 0:02:03.9]} 20... Qd5 {[%clk
0:02:27.3]} 21. Qc2 {[%clk 0:02:03.6]} 21... h3 {[%clk 0:02:21.1]} 22. Ng3
{[%clk 0:01:38.1]} 22... Ne5 {[%clk 0:02:00]} 23. Rfe1 {[%clk 0:01:32.2]} 23...
Nxf3+ {[%clk 0:01:55.4]} 24. gxf3 {[%clk 0:01:34.1]} 24... Qxf3 {[%clk
0:01:52.6]} 25. Qg6+ {[%clk 0:01:30.2]} 25... Kh8 {[%clk 0:01:51.7]} 26. Nh5
{[%clk 0:01:26.6]} 26... Bd7 {[%clk 0:01:28.5]} 27. Rd3 {[%clk 0:01:27.1]} 27...
Qf5 {[%clk 0:01:13]} 28. Qxf5 {[%clk 0:01:25.1]} 28... exf5 {[%clk 0:01:14.9]}
29. Rg3 {[%clk 0:01:20.4]} 29... Be8 {[%clk 0:00:51.2]} 30. Nf4 {[%clk
0:00:54.4]} 30... Bd6 {[%clk 0:00:32.3]} 31. Rg7 {[%clk 0:00:31.1]} 31... Bxf4
{[%clk 0:00:23.9]} 32. Ree7 {[%clk 0:00:31.7]} 32... Bg6 {[%clk 0:00:13.1]} 33.
Rxg6 {[%clk 0:00:29.7]} 33... Rg8 {[%clk 0:00:13.6]} 34. Rgg7 {[%clk 0:00:22.4]}
34... Rxg7+ {[%clk 0:00:14.5]} 35. fxg7+ {[%clk 0:00:23.8]} 35... Kg8 {[%clk
0:00:15.3]} 36. Rxb7 {[%clk 0:00:25.4]} 36... d3 {[%clk 0:00:15.7]} 37. Rd7
{[%clk 0:00:26.9]} 37... d2 {[%clk 0:00:17.1]} 38. Kf1 {[%clk 0:00:26]} 38... c4
{[%clk 0:00:17]} 39. Ke2 {[%clk 0:00:24.6]} 39... Bxh2 {[%clk 0:00:18.1]} 40.
Rxd2 {[%clk 0:00:20.7]} 40... Be5 {[%clk 0:00:19.6]} 41. Kf3 {[%clk 0:00:20.7]}
41... Kxg7 {[%clk 0:00:20.9]} 42. Rc2 {[%clk 0:00:20.6]} 42... Kf6 {[%clk
0:00:20.1]} 43. Rxc4 {[%clk 0:00:21.8]} 43... Kg5 {[%clk 0:00:19.9]} 44. b4
{[%clk 0:00:21.4]} 44... Bd6 {[%clk 0:00:19.3]} 45. b5 {[%clk 0:00:22.5]} 45...
axb5 {[%clk 0:00:21.2]} 46. axb5 {[%clk 0:00:24.3]} 46... Kf6 {[%clk 0:00:09.1]}
47. b6 {[%clk 0:00:25]} 47... Ke5 {[%clk 0:00:10.7]} 48. b7 {[%clk 0:00:25.4]}
48... Kd5 {[%clk 0:00:11.9]} 49. Rc8 {[%clk 0:00:26.4]} 1-0

[Event "*** Titled Tuesday 3|2 Blitz"]
[Site "Chess.com"]
[Date "2015.11.03"]
[Round "2"]
[White "Alliswell998"]
[Black "chesstatour"]
[Result "1/2-1/2"]
[WhiteElo "2095"]
[BlackElo "1922"]
[TimeControl "180+2"]
[EndTime "17:22:05 PST"]
[Termination "Game drawn by stalemate"]

1. e4 {[%clk 0:03:01.9]} 1... c6 {[%clk 0:02:57.9]} 2. d4 {[%clk 0:03:02.6]}
2... d5 {[%clk 0:02:59.5]} 3. exd5 {[%clk 0:03:03.8]} 3... cxd5 {[%clk
0:03:01.4]} 4. Bd3 {[%clk 0:03:05.2]} 4... Nc6 {[%clk 0:03:01.9]} 5. c3 {[%clk
0:03:06.3]} 5... g6 {[%clk 0:03:02.9]} 6. Bf4 {[%clk 0:03:06.7]} 6... Nh6 {[%clk
0:03:03.4]} 7. Nf3 {[%clk 0:03:00]} 7... Bg7 {[%clk 0:03:04.3]} 8. O-O {[%clk
0:03:00.5]} 8... O-O {[%clk 0:03:05.2]} 9. Nbd2 {[%clk 0:02:57.7]} 9... f6
{[%clk 0:03:04.5]} 10. Re1 {[%clk 0:02:46.6]} 10... Nf7 {[%clk 0:03:02.7]} 11.
Bc2 {[%clk 0:02:35]} 11... e5 {[%clk 0:02:57.5]} 12. dxe5 {[%clk 0:02:27]} 12...
fxe5 {[%clk 0:02:57.7]} 13. Bg3 {[%clk 0:02:25.4]} 13... e4 {[%clk 0:02:57.9]}
14. Nd4 {[%clk 0:02:10.4]} 14... Nxd4 {[%clk 0:02:58.4]} 15. cxd4 {[%clk
0:02:12]} 15... Bxd4 {[%clk 0:02:59.2]} 16. Rb1 {[%clk 0:02:07.7]} 16... Be6
{[%clk 0:02:51.9]} 17. Nf1 {[%clk 0:02:02.4]} 17... Qb6 {[%clk 0:02:48.3]} 18.
Ne3 {[%clk 0:01:58.6]} 18... Rad8 {[%clk 0:02:42.1]} 19. Kh1 {[%clk 0:01:54]}
19... Nh6 {[%clk 0:02:38.6]} 20. a4 {[%clk 0:01:44.2]} 20... a5 {[%clk
0:02:03.9]} 21. h3 {[%clk 0:01:37.9]} 21... Nf5 {[%clk 0:01:59.3]} 22. Nxf5
{[%clk 0:01:36]} 22... Rxf5 {[%clk 0:01:50.6]} 23. Rf1 {[%clk 0:01:30.3]} 23...
Bxf2 {[%clk 0:01:46.2]} 24. Bxf2 {[%clk 0:01:31]} 24... Rxf2 {[%clk 0:01:47.4]}
25. Rxf2 {[%clk 0:01:31.9]} 25... Qxf2 {[%clk 0:01:49.1]} 26. Bxe4 {[%clk
0:01:32.8]} 26... Qf4 {[%clk 0:01:07.8]} 27. Bf3 {[%clk 0:01:27.1]} 27... Kg7
{[%clk 0:01:06.5]} 28. Qe1 {[%clk 0:01:19.7]} 28... Re8 {[%clk 0:00:53.6]} 29.
Qc3+ {[%clk 0:01:05.3]} 29... Qf6 {[%clk 0:00:50.4]} 30. Qxa5 {[%clk 0:01:02.4]}
30... Bxh3 {[%clk 0:00:44.5]} 31. Qc3 {[%clk 0:00:45.3]} 31... Qxc3 {[%clk
0:00:35.7]} 32. bxc3 {[%clk 0:00:46.1]} 32... Bc8 {[%clk 0:00:12.2]} 33. Bxd5
{[%clk 0:00:46.3]} 33... Re7 {[%clk 0:00:11.4]} 34. Rb6 {[%clk 0:00:44.6]} 34...
Rc7 {[%clk 0:00:08.1]} 35. c4 {[%clk 0:00:44.2]} 35... Kf8 {[%clk 0:00:09]} 36.
Kh2 {[%clk 0:00:42.4]} 36... Ke7 {[%clk 0:00:10.4]} 37. a5 {[%clk 0:00:39.8]}
37... Kd8 {[%clk 0:00:10.7]} 38. Kg3 {[%clk 0:00:38.2]} 38... Re7 {[%clk
0:00:11.3]} 39. Kf4 {[%clk 0:00:35.1]} 39... Kc7 {[%clk 0:00:12.8]} 40. Rb2
{[%clk 0:00:29.2]} 40... Re8 {[%clk 0:00:11.9]} 41. Kg5 {[%clk 0:00:28.7]} 41...
Re7 {[%clk 0:00:12.1]} 42. Kf6 {[%clk 0:00:27.6]} 42... Rd7 {[%clk 0:00:13.1]}
43. g3 {[%clk 0:00:27.3]} 43... Rd8 {[%clk 0:00:13.6]} 44. Kg7 {[%clk
0:00:27.3]} 44... Rd7+ {[%clk 0:00:14.7]} 45. Kh6 {[%clk 0:00:27.9]} 45... Kd6
{[%clk 0:00:13.6]} 46. Rb6+ {[%clk 0:00:27.5]} 46... Kc5 {[%clk 0:00:14.3]} 47.
Rf6 {[%clk 0:00:24.6]} 47... Kb4 {[%clk 0:00:11.4]} 48. Be6 {[%clk 0:00:21.1]}
48... Rc7 {[%clk 0:00:11.7]} 49. Bxc8 {[%clk 0:00:20.3]} 49... Rxc8 {[%clk
0:00:12.9]} 50. Kxh7 {[%clk 0:00:16]} 50... Kxa5 {[%clk 0:00:13.5]} 51. Rxg6
{[%clk 0:00:14.2]} 51... Rxc4 {[%clk 0:00:14.1]} 52. g4 {[%clk 0:00:15.9]} 52...
b5 {[%clk 0:00:15.4]} 53. g5 {[%clk 0:00:17.4]} 53... b4 {[%clk 0:00:16.8]} 54.
Rh6 {[%clk 0:00:16.7]} 54... b3 {[%clk 0:00:16.4]} 55. g6 {[%clk 0:00:18.2]}
55... b2 {[%clk 0:00:15.3]} 56. Rh5+ {[%clk 0:00:17.3]} 56... Kb6 {[%clk
0:00:08.4]} 57. Rh1 {[%clk 0:00:12]} 57... Rc1 {[%clk 0:00:09.3]} 58. Rxc1
{[%clk 0:00:07.8]} 58... bxc1=Q {[%clk 0:00:11.2]} 59. g7 {[%clk 0:00:09.4]}
59... Qh1+ {[%clk 0:00:11.5]} 60. Kg6 {[%clk 0:00:10.5]} 60... Qg2+ {[%clk
0:00:12.4]} 61. Kf7 {[%clk 0:00:11.8]} 61... Qf3+ {[%clk 0:00:13]} 62. Ke7
{[%clk 0:00:12.9]} 62... Qg4 {[%clk 0:00:13.3]} 63. Kf7 {[%clk 0:00:14.6]} 63...
Qf5+ {[%clk 0:00:14.1]} 64. Ke7 {[%clk 0:00:16.3]} 64... Qg6 {[%clk 0:00:15.1]}
65. Kf8 {[%clk 0:00:17.8]} 65... Qf6+ {[%clk 0:00:16.1]} 66. Kg8 {[%clk
0:00:19.5]} 66... Kc6 {[%clk 0:00:16.2]} 67. Kh7 {[%clk 0:00:21.2]} 67... Qh4+
{[%clk 0:00:17.4]} 68. Kg6 {[%clk 0:00:22.4]} 68... Qg4+ {[%clk 0:00:18.7]} 69.
Kf7 {[%clk 0:00:23.9]} 69... Qf5+ {[%clk 0:00:19.5]} 70. Ke7 {[%clk 0:00:25.5]}
70... Qg6 {[%clk 0:00:20.4]} 71. Kf8 {[%clk 0:00:27]} 71... Qf6+ {[%clk
0:00:19.8]} 72. Kg8 {[%clk 0:00:28.7]} 72... Kd6 {[%clk 0:00:20.8]} 73. Kh7
{[%clk 0:00:30.4]} 73... Qh4+ {[%clk 0:00:21.6]} 74. Kg8 {[%clk 0:00:29.8]}
74... Ke7 {[%clk 0:00:19.1]} 1/2-1/2

[Event "*** Titled Tuesday 3|2 Blitz"]
[Site "Chess.com"]
[Date "2015.11.03"]
[Round "2"]
[White "Tirantes"]
[Black "Penguininja"]
[Result "1-0"]
[WhiteElo "2239"]
[BlackElo "2145"]
[TimeControl "180+2"]
[EndTime "17:22:42 PST"]
[Termination "Tirantes won by resignation"]

1. c4 {[%clk 0:03:01.9]} 1... c6 {[%clk 0:02:56]} 2. b3 {[%clk 0:03:00.3]} 2...
d5 {[%clk 0:02:56.9]} 3. Bb2 {[%clk 0:03:00.5]} 3... Nf6 {[%clk 0:02:57.8]} 4.
Nf3 {[%clk 0:02:59.9]} 4... Bf5 {[%clk 0:02:58.9]} 5. g3 {[%clk 0:02:59.6]} 5...
e6 {[%clk 0:03:00.3]} 6. Bg2 {[%clk 0:03:00]} 6... Nbd7 {[%clk 0:03:01.9]} 7.
O-O {[%clk 0:03:00.4]} 7... Be7 {[%clk 0:03:03.3]} 8. d3 {[%clk 0:03:00.4]} 8...
h6 {[%clk 0:03:03.9]} 9. Nbd2 {[%clk 0:03:00.3]} 9... O-O {[%clk 0:03:05.5]} 10.
Re1 {[%clk 0:02:55.9]} 10... a5 {[%clk 0:03:06.5]} 11. e4 {[%clk 0:02:54.9]}
11... Bh7 {[%clk 0:03:08]} 12. a3 {[%clk 0:02:47.6]} 12... Nc5 {[%clk
0:02:59.1]} 13. Ne5 {[%clk 0:02:43.4]} 13... dxe4 {[%clk 0:02:45.1]} 14. dxe4
{[%clk 0:02:35.3]} 14... Nd3 {[%clk 0:02:33.8]} 15. Nxd3 {[%clk 0:02:34]} 15...
Qxd3 {[%clk 0:02:35.7]} 16. Re3 {[%clk 0:02:33.5]} 16... Qd7 {[%clk 0:02:30.9]}
17. Qc2 {[%clk 0:02:27.5]} 17... Rfd8 {[%clk 0:02:30.2]} 18. Bc3 {[%clk
0:02:14]} 18... Ng4 {[%clk 0:02:07.8]} 19. Re2 {[%clk 0:02:08]} 19... Bc5 {[%clk
0:02:04.7]} 20. Nf3 {[%clk 0:01:50.4]} 20... Qd3 {[%clk 0:01:42.1]} 21. Ne1
{[%clk 0:01:47.3]} 21... Qxc2 {[%clk 0:01:29.7]} 22. Rxc2 {[%clk 0:01:44.9]}
22... Rd7 {[%clk 0:01:06.2]} 23. h3 {[%clk 0:01:41.2]} 23... Nf6 {[%clk
0:01:02.5]} 24. Re2 {[%clk 0:01:38.8]} 24... Rad8 {[%clk 0:01:02.7]} 25. Kf1
{[%clk 0:01:36.2]} 25... Bb6 {[%clk 0:01:01.3]} 26. Rc1 {[%clk 0:01:19.3]} 26...
Ne8 {[%clk 0:00:45.8]} 27. e5 {[%clk 0:01:10.9]} 27... Nc7 {[%clk 0:00:45.8]}
28. Be4 {[%clk 0:01:02.8]} 28... Bxe4 {[%clk 0:00:43]} 29. Rxe4 {[%clk
0:01:02.6]} 29... Na6 {[%clk 0:00:44.9]} 30. b4 {[%clk 0:00:58.4]} 30... Kf8
{[%clk 0:00:29.6]} 31. Ke2 {[%clk 0:00:51.7]} 31... g6 {[%clk 0:00:28.2]} 32. h4
{[%clk 0:00:44.4]} 32... Kg7 {[%clk 0:00:27.8]} 33. Rc2 {[%clk 0:00:43.2]} 33...
axb4 {[%clk 0:00:24.1]} 34. axb4 {[%clk 0:00:42.4]} 34... Bd4 {[%clk 0:00:22.1]}
35. Bd2 {[%clk 0:00:33.5]} 35... c5 {[%clk 0:00:16.3]} 36. b5 {[%clk 0:00:32]}
36... Nc7 {[%clk 0:00:17.1]} 37. Ra2 {[%clk 0:00:28.4]} 37... Na8 {[%clk
0:00:17.7]} 38. Ba5 {[%clk 0:00:24.8]} 38... Rc8 {[%clk 0:00:18.1]} 39. Nf3
{[%clk 0:00:23]} 39... b6 {[%clk 0:00:16.7]} 40. Bd2 {[%clk 0:00:20.7]} 40...
Rb7 {[%clk 0:00:17.2]} 41. Nxd4 {[%clk 0:00:19.5]} 41... cxd4 {[%clk 0:00:19.1]}
42. Rxd4 {[%clk 0:00:19.5]} 42... Rbc7 {[%clk 0:00:20.5]} 43. Ra4 {[%clk
0:00:18.3]} 43... Rb7 {[%clk 0:00:20.9]} 44. Kd3 {[%clk 0:00:18.6]} 44... Kf8
{[%clk 0:00:22.3]} 45. Rd6 {[%clk 0:00:18.2]} 45... Ke8 {[%clk 0:00:23.3]} 46.
Bxh6 {[%clk 0:00:18]} 46... Nc7 {[%clk 0:00:22.5]} 47. Be3 {[%clk 0:00:17.2]}
47... Na8 {[%clk 0:00:22.3]} 48. g4 {[%clk 0:00:16.5]} 48... Ke7 {[%clk
0:00:20.1]} 49. h5 {[%clk 0:00:15.5]} 49... gxh5 {[%clk 0:00:20.9]} 50. Bg5+
{[%clk 0:00:16.2]} 50... f6 {[%clk 0:00:22.8]} 51. Bxf6+ {[%clk 0:00:16.1]}
51... Kf7 {[%clk 0:00:24.4]} 52. gxh5 {[%clk 0:00:17]} 52... Nc7 {[%clk
0:00:25]} 53. Ra1 {[%clk 0:00:14.1]} 53... Ne8 {[%clk 0:00:25.8]} 54. Rd4 {[%clk
0:00:13.7]} 54... Rbc7 {[%clk 0:00:24.7]} 55. Bg5 {[%clk 0:00:11.8]} 55... Kg7
{[%clk 0:00:25.5]} 56. Rg1 {[%clk 0:00:11.1]} 56... Kh7 {[%clk 0:00:27]} 57. Be3
{[%clk 0:00:10.7]} 57... Ng7 {[%clk 0:00:28.1]} 58. Rdg4 {[%clk 0:00:08.5]}
58... Nf5 {[%clk 0:00:29.3]} 59. Rg6 {[%clk 0:00:08.2]} 59... Rxc4 {[%clk
0:00:30]} 60. Bxb6 {[%clk 0:00:06.7]} 60... Rc3+ {[%clk 0:00:31.1]} 61. Ke2
{[%clk 0:00:06.5]} 61... Rc2+ {[%clk 0:00:32.4]} 62. Kf3 {[%clk 0:00:06.1]}
62... R8c3+ {[%clk 0:00:31.9]} 63. Be3 {[%clk 0:00:05.7]} 63... Nh4+ {[%clk
0:00:32.8]} 64. Kf4 {[%clk 0:00:05.5]} 64... Rc4+ {[%clk 0:00:32.6]} 65. Kg5
{[%clk 0:00:05.6]} 65... Nf3+ {[%clk 0:00:31.5]} 66. Kf6 {[%clk 0:00:05.6]}
66... Nxg1 {[%clk 0:00:31]} 67. Rxg1 {[%clk 0:00:04.7]} 67... Rb2 {[%clk
0:00:31.8]} 68. b6 {[%clk 0:00:05]} 68... Rc6 {[%clk 0:00:31.9]} 69. Rg7+ {[%clk
0:00:04.6]} 69... Kh8 {[%clk 0:00:33.4]} 70. Re7 {[%clk 0:00:04.6]} 70... Rb1
{[%clk 0:00:32.6]} 71. b7 {[%clk 0:00:04.2]} 71... Rb3 {[%clk 0:00:25]} 72. Re8+
{[%clk 0:00:04.9]} 72... Kh7 {[%clk 0:00:26.9]} 73. b8=Q {[%clk 0:00:04.8]}
73... Rxb8 {[%clk 0:00:28.8]} 74. Rxb8 {[%clk 0:00:05.3]} 74... Rc7 {[%clk
0:00:30.7]} 75. h6 {[%clk 0:00:05]} 75... Rd7 {[%clk 0:00:31.9]} 76. Kxe6 {[%clk
0:00:05.5]} 76... Rc7 {[%clk 0:00:33.6]} 77. Rd8 {[%clk 0:00:04.8]} 77... Rb7
{[%clk 0:00:34.6]} 78. Rd7+ {[%clk 0:00:05.6]} 78... Kg6 {[%clk 0:00:36.3]} 79.
Rxb7 {[%clk 0:00:05.7]} 79... Kh5 {[%clk 0:00:38.2]} 80. h7 {[%clk 0:00:06.7]}
80... Kg4 {[%clk 0:00:40.1]} 1-0